Cogmind - Beta 13 @@@ ROGUE MODE // 2024.04.03 @ 14:05:23 Player: lazy_engineer Result: Self-destructed Performance ------------- Evolutions (1) 500 Regions Visited (3) 600 Robots Destroyed (19) 95 Value Destroyed (393) 393 Prototype IDs (0) 0 Alien Tech Used (0) 0 Bonus (0) 0 TOTAL SCORE: 1588 Bonus ------- None Cogmind --------- Core Integrity 324/400 Matter 298/300 Energy 100/100 System Corruption 0% Temperature Cool (0) Movement Treading (160) Location -9/Materials Parts ------- > --- POWER (1) -------- (None) > --- PROPULSION (2) --- Light Treads Improved Treads > --- UTILITY (4) ------ Heat Sink Medium Storage Unit Signal Interpreter > --- WEAPON (2) ------- (None) > --- INVENTORY (10) --- Ion Engine Light Nuclear Core Light Treads Light Treads Signal Interpreter Datajack Peak State ------------ > --- POWER ------------ Ion Engine > --- PROPULSION ------- Light Treads Wheel > --- UTILITY ---------- Medium Storage Unit Sensor Array Signal Interpreter Recalibrator > --- WEAPON ----------- Light Assault Rifle Mining Claw > --- INVENTORY -------- Ion Engine Light Nuclear Core Light Treads Light Treads Improved Treads Light Assault Rifle Datajack [Rating: 13] Favorites ----------- Power Ion Engine Engine Ion Engine Propulsion Light Treads Treads Light Treads Wheel Wheel Utility Sensor Array Device Sensor Array Storage Medium Storage Unit Processor Signal Interpreter Weapon Light Assault Rifle Energy Gun EM Pulse Gun Ballistic Gun Light Assault Rifle Launcher Grenade Launcher Slashing Weapon Mining Claw Special Melee Weapon Datajack Build | -11 -10 -10 -9 ------- Run | Yrd Mat Min Mat Slots Evolved 2 | . . . 2 Power . | . . . . Propulsion . | . . . . Utility 2 | . . . 2 Weapon . | . . . . Parts Attached 29 | 6 13 4 6 Power 2 | 1 1 . . Engine 2 | 1 1 . . Core . | . . . . Reactor . | . . . . Propulsion 10 | 2 5 1 2 Treads 6 | 1 3 . 2 Leg . | . . . . Wheel 4 | 1 2 1 . Hover . | . . . . Flight . | . . . . Utility 7 | 2 1 1 3 Device 3 | . 1 . 2 Storage 3 | 2 . 1 . Processor 1 | . . . 1 Hackware . | . . . . Protection . | . . . . Artifact . | . . . . Weapon 10 | 1 6 2 1 Energy Gun 2 | . 2 . . Energy Cannon . | . . . . Ballistic Gun 5 | 1 2 1 1 Ballistic Cannon . | . . . . Launcher 1 | . 1 . . Special Weapon . | . . . . Impact Weapon . | . . . . Slashing Weapon 1 | . 1 . . Piercing Weapon . | . . . . Special Melee Weapon 1 | . . 1 . Unidentified Prototypes . | . . . . Parts Lost 8 | . 1 . 7 Power 1 | . . . 1 Propulsion 1 | . . . 1 Utility 2 | . . . 2 Weapon 4 | . 1 . 3 Highest Loss Streak 3 | . 1 . 3 To Critical Strikes . | . . . . Average Slot Usage (%) 98 | . 100 100 96 Engine 12 | . 14 14 10 Treads 15 | . 18 14 13 Wheel 10 | . 9 14 8 Device 14 | . 8 14 20 Storage 14 | . 19 14 11 Processor 3 | . . . 11 Ballistic Gun 12 | . 18 8 10 Slashing Weapon 10 | . 5 14 9 Special Melee Weapon 2 | . . 5 . Naked Turns . | . . . . Heaviest Build 20 | 16 19 19 20 Greatest Support 43 | 10 40 10 43 Greatest Overweight (x) 1 | 1 1 1 1 Average Overweight (x) . | . . 1 . Largest Inventory Capacity 10 | 8 8 10 10 Average Capacity 9 | 7 8 9 10 Most Carried 9 | 5 8 9 8 Average Carried 7 | 2 7 8 6 Final Capacity 10 | 8 8 10 10 Final Carried 9 | 4 8 9 6 Class Distribution -------------------- 100% | Mutant Dominant Class ---------------- Mutant | -10/Materials Mutant | -10/Mines Mutant | -9/Materials Resources | -11 -10 -10 -9 ----------- Run | Yrd Mat Min Mat Matter Collected 523 | 243 49 111 120 Remotely . | . . . . Salvage Created 625 | 98 224 97 206 Parts 42 | 3 20 7 12 Haulers Intercepted 1 | . 1 . . Recyclers Shooed . | . . . . Parts Field Recycled . | . . . . Retrieved Matter . | . . . . Parts Self-Destructed . | . . . . Prevented . | . . . . Kills | -11 -10 -10 -9 ------- Run | Yrd Mat Min Mat Combat Hostiles Destroyed 14 | . 5 3 6 Melee 8 | . 2 3 3 Guns 4 | . 1 . 3 AOE 2 | . 2 . . Classes Destroyed 8 | 1 6 1 . Hauler 1 | . 1 . . Recycler 1 | 1 . . . Mechanic 1 | . 1 . . Operator 1 | . 1 . . Watcher 2 | . 1 . 1 Swarmer 6 | . 3 . 3 Grunt 7 | . 2 2 3 Assembled 1 | . . 1 . Best Kill Streak 4 | 1 4 2 2 Combat Bots Only 3 | . 3 2 2 Max Kills in Single Turn 3 | 1 3 1 1 Gunslinging . | . . . . Exploded 2 | . 2 . . Melee 1 | . 1 1 1 Uniques/NPCs Destroyed . | . . . . Combat | -11 -10 -10 -9 -------- Run | Yrd Mat Min Mat Hostile Shots Fired 163 | . 69 14 80 Missed 39 | . 12 4 23 Damage Taken 1362 | . 646 142 574 Core 270 | . 135 59 76 Absorbed by Shields . | . . . . Core Remaining (%) 61 | 100 . 22 . Volleys Fired 54 | 5 20 . 29 Largest 2 | 1 2 . 1 Hottest 60 | 20 60 . 20 Shots Fired 62 | 5 28 . 29 Gun 61 | 5 27 . 29 Cannon . | . . . . Launcher 1 | . 1 . . Special . | . . . . Kinetic 60 | 5 26 . 29 Thermal . | . . . . Explosive 1 | . 1 . . Electromagnetic 1 | . 1 . . Robot Hit Streak 7 | 2 7 . 3 Robot Miss Streak 3 | 1 2 . 3 Penetration Max . | . . . . Secondary Targets . | . . . . Shots Hit Robots 68 | 3 34 5 26 Core Hits 29 | 3 13 3 10 Critical Kills . | . . . . Critical Parts Destroyed . | . . . . Critical Strikes . | . . . . Melee Attacks 47 | . 20 11 16 Impact . | . . . . Slashing 47 | . 20 11 16 Piercing . | . . . . Sneak Attacks 3 | . 2 1 . Combat Hostiles 1 | . . 1 . Follow-up Attacks . | . . . . Damage Inflicted 1275 | 22 734 153 366 Guns 341 | 22 170 . 149 Cannons . | . . . . Explosions 162 | . 162 . . Melee 772 | . 402 153 217 Ramming . | . . . . Kinetic 341 | 22 170 . 149 Thermal . | . . . . Explosive 162 | . 162 . . Electromagnetic . | . . . . Impact . | . . . . Slashing 772 | . 402 153 217 Piercing . | . . . . Highest Corruption . | . . . . Average Corruption . | . . . . Corruption Purged . | . . . . Corruption Blocked . | . . . . Overload Shots . | . . . . Overflow Damage 62 | . 57 . 5 Projectiles . | . . . . Explosions 57 | . 57 . . Melee 5 | . . . 5 Knockbacks . | . . . . Impact . | . . . . Kinetic . | . . . . Secondary . | . . . . Self-Inflicted Damage 38 | . 38 . . Shots 1 | . 1 . . Rammed . | . . . . Targets Rammed . | . . . . Kicked . | . . . . Crushed . | . . . . Highest Temperature 20 | . 20 . . Average Temperature 9 | . 9 . . Received Heat Transfer 423 | . 270 18 135 Siege Activations . | . . . . Robots Corrupted . | . . . . Combat Hostiles . | . . . . Parts Fried . | . . . . Impact Corruptions . | . . . . Robots Melted . | . . . . Combat Hostiles . | . . . . Parts Melted . | . . . . Heat Transferred . | . . . . Parts Sabotaged . | . . . . Parts Stolen . | . . . . Parts Stripped . | . . . . Power Chain Reactions . | . . . . Alert | -11 -10 -10 -9 ------- Run | Yrd Mat Min Mat Peak Influence 169 | 5 169 115 142 Initial 65 | . 3 65 . Average 64 | 1 98 62 53 Maximum Alert Level . | . . . . Low Security (%) 100 | 100 100 100 100 Level 1 . | . . . . Level 2 . | . . . . Level 3 . | . . . . Level 4 . | . . . . Level 5 . | . . . . High Security . | . . . . Max Security . | . . . . Squads Dispatched 2 | . 2 . . Investigation 1 | . 1 . . Extermination . | . . . . Reinforcement 1 | . 1 . . Assault . | . . . . Garrison . | . . . . Intercept . | . . . . Searches Triggered . | . . . . Construction Impeded . | . . . . Haulers Reinforced . | . . . . Active Scanning Responses . | . . . . Cargo Convoy Interrupts . | . . . . Stealth | -11 -10 -10 -9 --------- Run | Yrd Mat Min Mat Distress Signals 2 | . 2 . . Communications Jammed . | . . . . Distress Signals . | . . . . Times Spotted 28 | . 10 2 16 Peak Tracking Total 6 | . 4 1 6 Tactical Retreats 1 | . . . 1 Traps | -11 -10 -10 -9 ------- Run | Yrd Mat Min Mat Traps Triggered . | . . . . Indirectly . | . . . . Trap Hack Attempts . | . . . . Triggered . | . . . . Disarmed . | . . . . Reprogrammed . | . . . . Reused . | . . . . Traps Extracted . | . . . . Installed . | . . . . Triggered . | . . . . Objects Rigged 1 | . 1 . . Machines | -11 -10 -10 -9 ---------- Run | Yrd Mat Min Mat Machines Disabled . | . . . . Max in Single Turn . | . . . . Machines Repaired . | . . . . Machines Dismantled . | . . . . Machines Sabotaged . | . . . . Overloaded Fab Kills . | . . . . Hacking | -11 -10 -10 -9 --------- Run | Yrd Mat Min Mat Machines Accessed 3 | . 3 . . Terminals 3 | . 3 . . Fabricators . | . . . . Repair Stations . | . . . . Recycling Units . | . . . . Scanalyzers . | . . . . Garrison Access . | . . . . Total Hacks 14 | . 14 . . Successful 6 | . 6 . . Failed 8 | . 8 . . Catastrophic 1 | . 1 . . Database Lockouts . | . . . . Manual 12 | . 12 . . Terminals 14 | . 14 . . Fabricators . | . . . . Repair Stations . | . . . . Recycling Units . | . . . . Scanalyzers . | . . . . Garrison Access . | . . . . Terminal Hacks 2 | . 2 . . Hauler Manifests 1 | . 1 . . Zone Layout 1 | . 1 . . Fabricator Hacks . | . . . . Repair Station Hacks . | . . . . Recycling Unit Hacks . | . . . . Scanalyzer . | . . . . Garrison Access Hacks . | . . . . Unauthorized Hacks 4 | . 4 . . Terminals 4 | . 4 . . Track 1 | . 1 . . Botnet 1 | . 1 . . Detonate 1 | . 1 . . Operators 1 | . 1 . . Fabricators . | . . . . Repair Stations . | . . . . Recycling Units . | . . . . Scanalyzers . | . . . . Garrison Access . | . . . . Data Cores Recovered . | . . . . Used . | . . . . Hacking Detections 3 | . 3 . . Full Trace Events 2 | . 2 . . Feedback Events . | . . . . Feedback Blocked . | . . . . Robot Schematics Acquired . | . . . . Robots Built . | . . . . Authchips . | . . . . Time . | . . . . Total Robot Build Rating . | . . . . Part Schematics Acquired . | . . . . Parts Built . | . . . . Authchips . | . . . . Time . | . . . . Total Part Build Rating . | . . . . Parts Repaired . | . . . . Time . | . . . . Parts Recycled . | . . . . Recycled Matter . | . . . . Retrieved Matter . | . . . . Retrieved Components . | . . . . Parts Scanalyzed . | . . . . Part Schematics Acquired . | . . . . Parts Damaged . | . . . . Bothacking | -11 -10 -10 -9 ------------ Run | Yrd Mat Min Mat Used RIF Installer . | . . . . Robots Hacked . | . . . . Non-combat . | . . . . Combat . | . . . . Robot Hacks Applied . | . . . . Relay Couplers Released . | . . . . Fabnet Peak Effective % . | . . . . Robots Rewired . | . . . . Allies Hacked . | . . . . Hacks Repelled . | . . . . Allies | -11 -10 -10 -9 -------- Run | Yrd Mat Min Mat Total Allies . | . . . . Largest Group . | . . . . Highest-Rated Group . | . . . . Highest-Rated Ally . | . . . . Total Orders . | . . . . Ally Attacks . | . . . . Total Damage . | . . . . Kills . | . . . . Allies Corrupted . | . . . . Allies Melted . | . . . . Intel | -11 -10 -10 -9 ------- Run | Yrd Mat Min Mat Robot Analysis Total . | . . . . Derelict Logs Recovered . | . . . . Drone Launches . | . . . . Drone Recoveries . | . . . . Exploration | -11 -10 -10 -9 ------------- Run | Yrd Mat Min Mat Turns Passed 1406 | 82 354 508 462 Spaces Moved 754 | 63 161 382 148 Core 2 | 2 . . . Treads 67 | . 45 . 22 Legs . | . . . . Wheels 685 | 61 116 382 126 Hover . | . . . . Flight . | . . . . Fastest Speed 50 | 50 95 95 95 Average Speed 100 | 90 113 95 104 Slowest Speed 160 | 95 160 95 160 Overloaded Moves . | . . . . Propulsion Burnouts . | . . . . Robots Hopped . | . . . . Cave-ins Triggered . | . . . . Exploration Rate (%) 32 | 5 39 69 15 Regions Visited 3 Branch Regions 1 Pre-discovered Areas . | . . . . Known Exits Taken . | . . . . Unknown Exits Taken 3 | 1 1 1 . Scrap Searched 1 | . . 1 . Spaces Dug 3 | . . 3 . Terrain Destroyed 6 | . 3 3 . Melee 3 | . . 3 . Projectile . | . . . . AOE 3 | . 3 . . Terrain Rammed . | . . . . Walls Destroyed . | . . . . Machines Disabled . | . . . . Actions | -11 -10 -10 -9 --------- Run | Yrd Mat Min Mat Total 1253 | 83 267 504 399 Wait 343 | . 41 106 196 Move 751 | 62 160 381 148 Hop . | . . . . Pick Up 23 | 10 9 1 3 Fast Attach 1 | . 1 . . Attach 13 | 6 2 . 5 Detach . | . . . . Swap 15 | . 10 4 1 Drop 6 | . 4 1 1 Fire 54 | 5 20 . 29 Melee 47 | . 20 11 16 Ram . | . . . . Kick . | . . . . Crush . | . . . . Escape Stasis . | . . . . Rewire . | . . . . Trap . | . . . . Miscellaneous . | . . . . Route ------- -11/Scrapyard -10/Materials -10/Mines -9/Materials History --------- Turn | Location | Event 19 | -11/Scrapyard | Discovered new exit (range 16) 83 | -11/Scrapyard | Entered Materials 308 | -10/Materials | Build established: Mutant 383 | -10/Materials | Discovered new exit (range 9) 437 | -10/Materials | Core integrity fell below 50% 437 | -10/Materials | Entered Mines 444 | -10/Mines | Met a Derelict bent on vengeance 778 | -10/Mines | Assembled infested the area 903 | -10/Mines | Discovered new exit (range 10) 945 | -10/Mines | Entered Materials 945 | -9/Materials | Evolved 2 slots: Utility x2 1387 | -9/Materials | Lost 3 parts (1u2w) 1407 | -9/Materials | Self-destructed Last Messages --------------- 01304_ G-47 Trooper destroyed. 01309_ Acquired Heat Sink. 01312_ R-06 Scavenger collects Aluminum Leg. 01312_ W-16 Scout destroyed. 01315_ Acquired 44 matter. 01318_ R-06 Scavenger collects Heat Sink. 01319_ Acquired Signal Interpreter. 01321_ Acquired 14 matter. 01328_ R-06 Scavenger collects Hover Unit. 01337_ Lgt. Assault Rifle destroyed. 01343_ S-10 Pest destroyed. 01348_ Sensor Array destroyed. 01356_ Mining Claw destroyed. 01361_ S-10 Pest destroyed. 01390_ Destroyed Flight Unit. 01391_ Ion Engine destroyed. 01394_ S-10 Pest destroyed. 01397_ Acquired 17 matter. 01405_ Lgt. Assault Rifle destroyed. 01406_ K-01 Serf collects debris. Map ----- +----------------------------------------------------+ | ?????????????????????????????????????????????????? | | ?????????????????????????????????????????????????? | | ?????????????????????????????????????????????????? | | ?????????????????????????????????????????????????? | | ?????????????????????????????????????????????????? | | ?????????????????????????????????????????????????? | | ?????????????????????????????????????????????????? | | ?????????????????????????????????????????????????? | | ?????????????????????????????????????????????????? | | ?????????????????????????????????????????????????? | | ?????????????????????????????????????????????????? | | ?????????????????????????????????????????????????? | | ?????????????????????????????????????????????????? | | ??????????????????????????????????? ???????????? | | ?????????????????????????????????? ???????????? | | ?????????????????????????????????? ???????????? | | ?????????????????????????????????? ??????????? | | ????????????????????????####??????# #??????????? | | ????????????????????????# ??????# #??????????? | | ????????????????????????# ????+ #??????????? | | ????????????????????????# """ ???# #??????????? | | ????????????????????????# """"" # #??????????? | | ????????????????????????# """"" # #??????????? | | ????????????????????????# """"" # #??????????? | | ????????????????????????#^ """ ^ # +??????????? | | ?????????????####+#####?#@==% + #??????????? | | ?????????? ##s######## #??????????? | | ?????????? %######## #??????????? | | ?????????? ############ | | ?????????? k + # | | ??????????? "T" !!! = ###* # | | ???????????#### !! %[ %#?# + | | ??????????????# !! #######+#### # | | ??????????????# ### * = # # | | ??????????????# #?# """" # # | | ??????????????# #?# """" # # | | ??????????????# ######+#?# """" # # | | ??????????????# ?????????# # # | | ??????????????# ??????????# [ ########## | | ???????????????? ??????????# #????????# | | ??????????????????#???????????# * #????????# | | ??????????????????????????????###########????????# | | ?????????????????????????????????????????????????# | | ?????????????????????????????????????????????????# | | | | | | | | | | | | | +----------------------------------------------------+ Best States ------------- Heat Dissipation 38 Energy Generation 10 Energy Capacity 250 Matter Stores 300 Matter Capacity 300 Sight Range 16 Robot Scan Range 14 Terrain Scan Density 10 Evasion (%) 44 Recoil Reduction 2 Item Schematics ----------------- None Robot Schematics ------------------ None Fabricated ------------ Nothing Alien Tech Used ----------------- None Achievements -------------- None Challenges ------------ None Game ------ Seed BombIonNeutralizer Manual? 0 Play Time 00:13:54 Cumulative 20.1 hours Start 2024.04.03 @ 13:51:35 End 2024.04.03 @ 14:05:23 Sessions 1 Manual Loads 0 Difficulty Rogue Special Mode None Game No. 41 Rogue 41 Adventurer 0 Explorer 0 Win Type - Total 0 Types 0/0/0/0/0/0/0/0/0 Lore% 17 Gallery% 20 Achievement% 19 Wizard Run 0 Options --------- Layout 0 ASCII 0 Keyboard 0 Movement Mouse Keybinds 0 Fullscreen 1 Font 24/Smallcaps Map View 76x50 Zoom Use 0% Tactical HUD 1 Map Filters NONE Filters NONE Steam 1 RUN: 1dc40070-ca6f-47f5-86dd-884a12940c4a